bitfinex-derivatives/quotes_SOLF0:USTF0_20250609
["timestamp","ask_amount","ask_price","bid_price","bid_amount"]
[1749463161057,43.62843935,153.65,153.56,38.43148269]
[1749463161058,6.0688894,153.64,153.56,38.43148269]
[1749463161366,6.0688894,153.64,153.57,6.72509242]
[1749463161561,6.0688894,153.64,153.57,3.81383525]
[1749463161761,6.5076,153.6,153.57,3.81383525]
[1749463161962,6.0688894,153.63,153.57,3.81383525]
[1749463162164,0.04730781,153.62,153.58,0.04412251]
[1749463162358,6.5077,153.59,153.58,0.04412251]
[1749463173872,6.5077,153.59,153.58,2.251e-05]
[1749463175068,10.32153525,153.59,153.58,2.251e-05]
[1749463176276,16.39965566,153.59,153.58,2.251e-05]
[1749463176475,10.32153525,153.59,153.58,2.251e-05]
[1749463177075,6.5077,153.59,153.58,2.251e-05]
[1749463177376,10.32153525,153.59,153.58,2.251e-05]
[1749463179469,11.9222746,153.59,153.44,7.07246273]
[1749463179770,9.89355946,153.56,153.48,3.81383525]
[1749463179971,6.5109,153.52,153.48,3.81383525]
[1749463180476,6.55972413,153.52,153.48,3.85626654]
[1749463180870,0.04882413,153.52,153.48,3.85626654]
[1749463181575,6.5119,153.49,153.48,3.85626654]
[1749463182366,6.5119,153.49,153.48,0.04243129]
[1749463185676,6.5119,153.49,153.48,3.129e-05]
[1749463185873,45.72573525,153.49,153.48,3.129e-05]
[1749463186272,299.0,153.48,153.36,5.93907837]
[1749463186478,299.0,153.48,153.33,3.81383525]
[1749463186479,3.81383525,153.41,153.33,3.81383525]
[1749463187279,0.04261115,153.39,153.37,3.81383525]
[1749463187471,0.04382229,153.4,153.37,39.21383525]
[1749463187676,0.04647882,153.4,153.37,39.26312832]
[1749463188577,0.04647882,153.4,153.38,2.9457175]
[1749463188775,0.04647882,153.4,153.39,2.94576648]
[1749463188977,0.04647882,153.4,153.37,39.26312832]
[1749463189177,0.04647882,153.4,153.38,2.94635796]
[1749463189383,0.04647882,153.4,153.37,39.28312832]
[1749463189679,0.04647882,153.4,153.38,2.96487983]
[1749463189878,0.04647882,153.4,153.37,39.28312832]
[1749463190274,0.04647882,153.4,153.38,2.96498965]
[1749463190479,0.04647882,153.4,153.39,2.96438851]
[1749463190679,0.04647882,153.4,153.39,2.9643855]
[1749463190879,0.04647882,153.4,153.37,39.28312832]
[1749463191283,0.04647882,153.4,153.39,6.5162]
[1749463191483,0.04647882,153.4,153.39,13.29287411]
[1749463191688,0.04647882,153.4,153.39,10.33003525]
[1749463191985,6.5142,153.44,153.4,6.5155]
[1749463192185,6.5142,153.44,153.41,2.96285347]
[1749463192388,6.5142,153.44,153.4,6.5155]
[1749463192687,6.5146,153.43,153.41,2.96301975]
[1749463192983,6.5146,153.43,153.4,6.55768515]
[1749463193185,6.5146,153.43,153.41,2.96296248]
[1749463193486,6.5146,153.43,153.4,0.04218515]
[1749463193674,6.56327915,153.44,153.4,0.04218515]
[1749463193881,6.56327915,153.44,153.41,38.38270366]
[1749463194079,6.56327915,153.44,153.41,35.42]
[1749463195383,6.56317915,153.44,153.41,35.42]
[1749463195885,6.56317915,153.44,153.41,41.9353]
[1749463196383,0.04907915,153.44,153.41,41.9353]
[1749463197984,0.04907915,153.44,153.42,6.5148]
[1749463198181,0.04907915,153.44,153.41,39.23383525]
[1749463198588,0.04907915,153.44,153.43,6.5145]
[1749463200487,35.42,153.51,153.45,6.5134]
[1749463200986,6.5126,153.48,153.43,3.81383525]
[1749463201378,6.512,153.49,153.43,3.81383525]
[1749463201587,0.04460699,153.48,153.47,6.5128]
[1749463201884,0.04488939,153.49,153.46,0.04856716]
[1749463202081,0.04488939,153.49,153.47,3.81383525]
[1749463202287,0.04488939,153.49,153.48,6.5124]
[1749463203188,6.5104,153.53,153.49,6.5117]
[1749463203389,35.32,153.54,153.49,10.32553525]
[1749463203587,3.81383525,153.57,153.49,45.64553525]
[1749463204092,0.0442932,153.55,153.51,0.04683303]
[1749463204291,6.5105,153.53,153.51,0.04683303]
[1749463204788,0.0442932,153.55,153.51,0.04683303]
[1749463205288,6.5105,153.53,153.51,0.04683303]
[1749463205492,0.0442932,153.55,153.51,0.04683303]
[1749463205988,6.5105,153.53,153.51,0.04683303]
[1749463207191,0.0442932,153.55,153.51,0.04683303]
[1749463207795,6.5101,153.54,153.51,0.04683303]
[1749463208493,6.5104,153.53,153.51,0.04683303]
[1749463209393,6.5099,153.54,153.51,0.04683303]
[1749463209594,0.0442932,153.55,153.51,0.04683303]
[1749463210195,6.5102,153.54,153.51,0.04683303]
[1749463210595,0.0442932,153.55,153.51,0.04683303]
[1749463210800,6.5099,153.54,153.51,0.04683303]
[1749463211888,0.0442932,153.55,153.51,0.04683303]
[1749463212095,0.0442932,153.55,153.51,3.86066828]
[1749463212295,6.5101,153.54,153.51,3.86066828]
[1749463212692,0.0442932,153.55,153.51,3.86066828]
[1749463213094,6.5107,153.52,153.51,3.86066828]
[1749463213597,6.5104,153.53,153.51,3.86066828]
[1749463214292,0.0442932,153.55,153.51,3.86066828]
[1749463214799,0.0442932,153.55,153.53,3.81383525]
[1749463215095,0.0442932,153.55,153.53,39.13383525]
[1749463215999,0.0442932,153.55,153.54,3.81383525]
[1749463217299,0.0442932,153.55,153.54,10.32363525]
[1749463217498,0.0442932,153.55,153.54,6.5098]
[1749463217701,0.0442932,153.55,153.54,10.32363525]
[1749463217899,0.0442932,153.55,153.51,0.04683303]
[1749463218100,0.0442932,153.55,153.52,35.3]
[1749463218603,6.5101,153.54,153.52,35.3]
[1749463218902,6.5538932,153.55,153.52,35.3]
[1749463219303,6.5538932,153.55,153.52,41.8106]
[1749463219501,0.0442932,153.55,153.52,41.8106]
[1749463220402,6.5537932,153.55,153.52,41.8106]
[1749463221707,6.5099,153.54,153.52,35.3]
[1749463221908,0.0442932,153.55,153.52,35.3]
[1749463222309,6.5538932,153.55,153.52,35.3]
[1749463223005,6.5538932,153.55,153.52,41.8106]
[1749463224411,0.0442932,153.55,153.53,3.81383525]
[1749463224997,0.0442932,153.55,153.53,6.5099]
[1749463225201,0.0442932,153.55,153.52,35.3]
[1749463225401,0.0442932,153.55,153.52,41.8104]
[1749463225607,0.0442932,153.55,153.52,35.3]
[1749463225810,6.5537932,153.55,153.52,35.3]
[1749463226008,0.0442932,153.55,153.52,35.3]
[1749463227014,6.5101,153.54,153.52,35.3]
[1749463227220,6.5101,153.54,153.51,0.04683303]
[1749463227221,3.85812845,153.55,153.51,0.04683303]
[1749463227616,6.5107,153.52,153.51,0.04683303]
[1749463243733,6.5107,153.52,153.51,3.303e-05]
[1749463250835,10.32453525,153.52,153.51,3.303e-05]
[1749463251539,6.5107,153.52,153.51,3.303e-05]
[1749463267645,3.81383525,153.54,153.51,3.303e-05]
[1749463268644,6.5107,153.52,153.51,3.303e-05]
[1749463269044,6.5104,153.53,153.51,3.303e-05]
[1749463269244,0.0487071,153.54,153.51,3.303e-05]
[1749463270442,6.5107,153.52,153.51,3.303e-05]
[1749463282359,8.95406513,153.52,153.51,3.303e-05]
[1749463282650,6.5107,153.52,153.51,3.303e-05]
[1749463282856,8.95406513,153.52,153.51,3.303e-05]
[1749463289260,6.5107,153.52,153.51,3.303e-05]
[1749463290357,0.0487071,153.54,153.51,3.303e-05]
[1749463290958,6.5107,153.52,153.51,3.303e-05]
[1749463291753,6.5104,153.53,153.51,3.303e-05]
[1749463292061,0.0487071,153.54,153.51,3.303e-05]
[1749463292857,6.5107,153.52,153.51,3.303e-05]
[1749463293463,16.00896176,153.53,153.44,2.2108]
[1749463293656,3.81809316,153.49,153.41,6.10009316]
[1749463293857,3.81809316,153.49,153.42,2.9227375]
[1749463294061,3.81809316,153.49,153.42,2.92275753]
[1749463294255,3.81809316,153.49,153.41,6.10009316]
[1749463294256,0.0443541,153.47,153.44,0.04667393]
[1749463295065,6.5133,153.46,153.44,0.04667393]
[1749463295666,38.83809316,153.51,153.44,0.04667393]
[1749463296167,6.5133,153.46,153.44,0.04667393]
[1749463296368,38.83809316,153.51,153.44,0.04667393]
[1749463296563,35.02,153.51,153.45,2.9165107]
[1749463296764,6.5124,153.48,153.45,2.9165107]
[1749463296967,0.04870523,153.5,153.44,2.16257393]
[1749463297170,3.86679839,153.5,153.44,2.16257393]
[1749463297374,6.5135,153.46,153.44,2.16257393]
[1749463299964,6.5136,153.45,153.44,0.04667393]
[1749463303874,0.04807035,153.46,153.44,0.04667393]
[1749463305287,6.56137035,153.46,153.44,0.04667393]
[1749463305683,0.04807035,153.46,153.44,0.04667393]
[1749463305881,6.5136,153.45,153.44,0.04667393]
[1749463306188,3.81809316,153.45,153.39,2.1337]
[1749463306386,6.5156,153.41,153.39,2.1337]
[1749463307682,6.5158,153.4,153.39,2.1337]
[1749463307882,0.04676803,153.42,153.39,2.1337]
[1749463308591,6.5156,153.41,153.39,2.1337]
[1749463309183,6.56186803,153.42,153.39,2.1337]
[1749463312183,6.5158,153.4,153.38,35.08349446]
[1749463313385,6.5154,153.41,153.38,35.08349446]
[1749463313585,0.04676803,153.42,153.38,35.08349446]
[1749463313988,6.56196803,153.42,153.38,41.59989446]
[1749463314187,0.04676803,153.42,153.38,35.08349446]
[1749463314586,0.04676803,153.42,153.38,0.04349446]
[1749463314791,3.86486119,153.42,153.38,0.04349446]
[1749463314987,0.04676803,153.42,153.38,0.04349446]
[1749463315197,6.5157,153.41,153.38,0.04349446]
[1749463315693,0.04676803,153.42,153.38,0.04349446]
[1749463316094,6.5154,153.41,153.38,0.04349446]
[1749463316795,6.5159,153.4,153.38,0.04349446]
[1749463317291,6.5155,153.41,153.38,0.04349446]
[1749463317493,0.04676803,153.42,153.38,0.04349446]
[1749463317892,6.516,153.4,153.38,0.04349446]
[1749463318294,0.04676803,153.42,153.38,0.04349446]
[1749463319197,6.5161,153.4,153.38,0.04349446]
[1749463319494,6.5154,153.41,153.38,0.04349446]
[1749463319691,0.04676803,153.42,153.38,0.04349446]
[1749463320995,0.04676803,153.42,153.39,3.81809316]
[1749463321198,0.04676803,153.42,153.39,34.94]
[1749463321498,6.5155,153.41,153.39,34.94]
[1749463322095,6.5158,153.4,153.39,34.94]
[1749463322692,6.5162,153.39,153.38,0.04349446]
[1749463325300,6.5154,153.41,153.38,0.04349446]
[1749463325601,0.04676803,153.42,153.38,0.04349446]
[1749463326000,4.15852864,153.42,153.38,0.04349446]
[1749463326200,4.11240612,153.41,153.38,0.04349446]
[1749463326403,6.5162,153.39,153.38,0.04349446]
[1749463330002,6.5178,153.36,153.27,89.62306703]
[1749463330308,7.93051139,153.39,153.31,6.5193]
[1749463330309,3.81809316,153.39,153.31,6.5193]
[1749463330600,4.10362237,153.38,153.31,6.5193]
[1749463331004,6.5181,153.35,153.33,0.04680557]
[1749463331403,0.04311916,153.36,153.33,0.04680557]
[1749463331601,4.10376542,153.35,153.33,0.04680557]
[1749463331799,10.62207749,153.34,153.33,0.04680557]
[1749463332309,10.62207063,153.34,153.33,0.04680557]
[1749463332509,6.5183,153.34,153.33,0.04680557]
[1749463332899,10.62196098,153.34,153.33,0.04680557]
[1749463333103,6.5183,153.34,153.33,0.04680557]
[1749463333401,10.62197297,153.34,153.33,0.04680557]
[1749463333600,6.5183,153.34,153.33,0.04680557]
[1749463333806,3.81809316,153.35,153.26,34.96]
[1749463334110,3.81809316,153.35,153.24,3.81809316]
[1749463334111,3.81809316,153.33,153.25,34.96]
[1749463334403,3.81809316,153.33,153.26,6.5216]
[1749463334404,6.52,153.31,153.26,6.5216]
[1749463334612,34.96,153.34,153.26,3.81809316]
[1749463334915,0.04509635,153.32,153.28,0.04589219]
[1749463335604,6.56449635,153.32,153.28,0.04589219]
[1749463336508,6.5198,153.31,153.28,0.04589219]
[1749463337314,6.5201,153.3,153.28,0.04589219]
[1749463338212,6.5196,153.31,153.28,0.04589219]
[1749463338513,0.04509635,153.32,153.28,0.04589219]
[1749463339116,6.5203,153.3,153.28,0.04589219]
[1749463339508,0.04509635,153.32,153.28,0.04589219]
[1749463339707,6.5197,153.31,153.28,0.04589219]
[1749463339910,6.5197,153.31,153.28,6.56669219]
[1749463340316,6.5197,153.31,153.28,0.04589219]
[1749463340613,0.04509635,153.32,153.28,0.04589219]
[1749463340914,6.52,153.3,153.28,0.04589219]
[1749463341310,0.04509635,153.32,153.28,0.04589219]
[1749463341513,6.5202,153.3,153.28,0.04589219]
[1749463341709,0.04509635,153.32,153.28,0.04589219]
[1749463342013,6.5203,153.3,153.28,0.04589219]
[1749463342615,6.5199,153.31,153.28,0.04589219]
[1749463344209,0.04509635,153.32,153.28,0.04589219]
[1749463344617,0.04509635,153.32,153.28,6.56669219]
[1749463345216,6.56439635,153.32,153.28,6.56669219]
[1749463345507,0.04509635,153.32,153.28,6.56669219]
[1749463346109,6.56449635,153.32,153.28,0.04589219]
[1749463346315,0.04509635,153.32,153.28,0.04589219]
[1749463346714,6.56449635,153.32,153.28,0.04589219]
[1749463347723,0.04509635,153.32,153.28,3.86398535]
[1749463348412,6.56429635,153.32,153.28,10.38458535]
[1749463348617,0.04509635,153.32,153.28,3.86398535]
[1749463349114,0.04509635,153.32,153.29,6.5201]
[1749463349819,6.56459635,153.32,153.28,6.56659219]
[1749463350910,6.5197,153.31,153.28,6.56659219]
[1749463351620,0.04509635,153.32,153.28,0.04589219]
[1749463351919,0.04509635,153.32,153.29,3.81809316]
[1749463352111,6.56449635,153.32,153.29,3.81809316]
[1749463352307,0.04509635,153.32,153.29,3.81809316]
[1749463352909,6.56429635,153.32,153.29,10.33839316]
[1749463354919,0.04509635,153.32,153.31,10.33769316]
[1749463355115,34.88,153.39,153.31,3.81809316]
[1749463355315,34.88,153.39,153.3,34.88]
[1749463355316,6.5173,153.37,153.34,6.5183]
[1749463355516,0.27245,153.4,153.35,3.81809316]
[1749463356017,0.04270612,153.39,153.37,3.81809316]
[1749463356520,0.04270612,153.39,153.38,6.5166]
[1749463357521,0.04270612,153.39,153.37,3.81809316]
[1749463357817,0.27245,153.4,153.38,34.88]
[1749463358023,6.5142,153.44,153.39,3.81809316]
[1749463358415,6.514,153.45,153.42,6.5148]
[1749463358617,128.67248904,153.48,153.38,34.88]
[1749463358925,0.04701792,153.45,153.41,3.86594681]
[1749463359326,0.04701792,153.45,153.41,10.38094681]
[1749463359725,0.04701792,153.45,153.41,0.04785365]
[1749463360129,3.86511108,153.45,153.41,0.04785365]
[1749463360323,6.5149,153.42,153.41,0.04785365]
[1749463361826,6.5163,153.39,153.35,39.2142]
[1749463362624,6.5159,153.4,153.35,45.7318]
[1749463362829,0.0480501,153.39,153.36,0.0479513]
[1749463364729,6.5642501,153.39,153.36,0.0479513]
[1749463366021,6.5166,153.38,153.36,0.0479513]
[1749463370426,6.5643501,153.39,153.36,0.0479513]
[1749463370626,0.0480501,153.39,153.36,0.0479513]
[1749463371023,6.5169,153.38,153.36,0.0479513]
[1749463371927,6.5166,153.38,153.36,0.0479513]
[1749463372927,6.5644501,153.39,153.36,0.0479513]
[1749463373524,6.5166,153.38,153.36,0.0479513]
[1749463373720,0.0480501,153.39,153.36,0.0479513]
[1749463373925,6.5169,153.38,153.36,0.0479513]
[1749463374123,0.0480501,153.39,153.36,0.0479513]
[1749463374628,6.5169,153.38,153.36,0.0479513]
[1749463379933,6.517,153.37,153.36,0.0479513]
[1749463386933,6.5187,153.34,153.32,34.78]
[1749463388437,0.04689386,153.35,153.32,34.78]
[1749463388942,6.5187,153.33,153.32,34.78]
[1749463389143,0.04689386,153.35,153.31,0.04660674]
[1749463389739,6.5191,153.32,153.31,0.04660674]
[1749463395248,6.5189,153.33,153.31,0.04660674]
[1749463396939,0.04689386,153.35,153.31,0.04660674]
[1749463397345,6.56509386,153.35,153.31,6.56590674]
[1749463397644,0.04689386,153.35,153.31,0.04660674]
[1749463399248,6.5187,153.34,153.31,0.04660674]
[1749463399540,0.04689386,153.35,153.31,0.04660674]
[1749463400644,6.5184,153.34,153.31,0.04660674]
[1749463401045,0.04689386,153.35,153.31,0.04660674]
[1749463402051,6.519,153.33,153.31,0.04660674]
[1749463402551,0.04689386,153.35,153.31,0.04660674]
[1749463402852,6.5191,153.32,153.31,0.04660674]
[1749463427872,6.5189,153.33,153.31,0.04660674]
[1749463429575,6.5192,153.32,153.31,0.04660674]
[1749463433073,6.5189,153.33,153.31,0.04660674]
[1749463434376,6.5192,153.32,153.31,0.04660674]
[1749463434777,8.50302588,153.34,153.31,0.04660674]
[1749463435074,6.519,153.33,153.31,0.04660674]
[1749463435670,6.5192,153.32,153.31,0.04660674]
[1749463436275,6.5189,153.33,153.31,0.04660674]
[1749463437478,12.57254322,153.33,153.31,0.04660674]
[1749463438875,6.5192,153.32,153.31,0.04660674]
[1749463440377,6.10053708,153.35,153.31,0.04660674]
[1749463440580,6.05364322,153.34,153.31,0.04660674]
[1749463441083,15.06776789,153.35,153.31,0.04660674]
[1749463442474,6.5183,153.34,153.31,0.04660674]
[1749463443081,6.5188,153.33,153.31,0.04660674]
[1749463443282,8.54966789,153.35,153.31,0.04660674]
[1749463443483,6.05364322,153.34,153.31,0.04660674]
[1749463443676,6.5192,153.32,153.31,0.04660674]
[1749463445480,15.02157403,153.33,153.31,0.04660674]
[1749463446484,6.5192,153.32,153.31,0.04660674]
[1749463447085,6.5198,153.31,153.27,34.8]
[1749463447287,6.5198,153.31,153.27,37.24913081]
[1749463447583,6.05364322,153.32,153.27,37.24913081]
[1749463448186,0.04137078,153.31,153.28,0.0435387]
[1749463449686,6.56107078,153.31,153.28,0.0435387]
[1749463452384,0.04137078,153.31,153.28,0.0435387]
[1749463453188,6.56097078,153.31,153.28,0.0435387]
[1749463453784,0.04137078,153.31,153.28,0.0435387]
[1749463455187,6.56107078,153.31,153.28,0.0435387]
[1749463455591,0.04137078,153.31,153.28,0.0435387]
[1749463458796,6.56097078,153.31,153.28,0.0435387]
[1749463459095,0.04137078,153.31,153.28,0.0435387]
[1749463462898,6.56097078,153.31,153.28,0.0435387]
[1749463466803,6.52,153.3,153.28,0.0435387]
[1749463466998,8.54414481,153.31,153.28,0.0435387]
[1749463467403,2.49050159,153.31,153.28,0.0435387]
[1749463467896,8.50277403,153.29,153.24,34.6]
[1749463468102,2.44913081,153.26,153.24,34.6]
[1749463468297,2.44913081,153.28,153.25,2.98434815]
[1749463468493,2.44913081,153.28,153.24,34.6]
[1749463468697,2.44913081,153.26,153.24,34.6]
[1749463468903,2.44913081,153.26,153.25,2.98486134]
[1749463469102,9.01576333,153.27,153.25,2.98495721]
[1749463469303,2.49416333,153.27,153.24,34.6]
[1749463469806,9.01576333,153.27,153.24,34.6]
[1749463472010,8.97083081,153.26,153.23,0.04470242]
[1749463472309,2.44913081,153.25,153.24,2.9929287]
[1749463472506,2.44913081,153.25,153.24,2.99292926]
[1749463472900,2.44913081,153.25,153.24,2.99295946]
[1749463473106,8.97123081,153.25,153.23,0.04470242]
[1749463473305,2.44913081,153.25,153.23,0.04470242]
[1749463474512,8.97113081,153.26,153.23,0.04470242]
[1749463474905,2.49416333,153.27,153.24,2.44913081]
[1749463475608,9.01556333,153.27,153.24,2.44913081]
[1749463475811,9.01556333,153.27,153.23,2.49383323]
[1749463476012,9.01556333,153.27,153.24,3.00039632]
[1749463476200,9.01556333,153.27,153.23,0.04470242]
[1749463476405,9.01556333,153.27,153.24,3.00032707]
[1749463476609,9.01556333,153.27,153.23,2.49383323]
[1749463477012,9.01556333,153.27,153.24,2.99989026]
[1749463477211,9.01556333,153.27,153.23,2.49383323]
[1749463477408,9.01556333,153.27,153.24,2.99982409]
[1749463477607,9.01556333,153.27,153.23,2.49383323]
[1749463477811,9.01556333,153.27,153.24,2.99972439]
[1749463478013,9.01556333,153.27,153.23,2.49383323]
[1749463478316,9.01556333,153.27,153.24,2.99966007]
[1749463478509,9.01556333,153.27,153.23,2.49383323]
[1749463478915,9.01556333,153.27,153.24,2.99972644]
[1749463479212,9.01556333,153.27,153.23,2.49383323]
[1749463479403,9.01556333,153.27,153.23,0.04470242]
[1749463479604,9.01556333,153.27,153.23,2.49383323]
[1749463479913,0.04503252,153.27,153.26,2.44913081]
[1749463480517,0.04503252,153.27,153.24,2.44913081]
[1749463480713,0.04503252,153.27,153.25,2.99925434]
[1749463480913,0.04503252,153.27,153.23,2.49383323]
[1749463481111,0.04503252,153.27,153.24,2.99944518]
[1749463481315,6.56663252,153.27,153.25,2.99934837]
[1749463481508,6.56663252,153.27,153.24,2.44913081]
[1749463481914,6.56663252,153.27,153.25,2.99931751]
[1749463482114,6.56663252,153.27,153.24,2.44913081]
[1749463482311,0.04503252,153.27,153.25,2.9994018]
[1749463482617,0.04503252,153.27,153.24,2.44913081]
[1749463483021,0.04503252,153.27,153.25,2.99947819]
[1749463483318,6.56643252,153.27,153.23,0.04470242]
[1749463483507,6.56643252,153.27,153.24,5.44859193]
[1749463483712,6.56643252,153.27,153.25,2.99939475]
[1749463483913,9.01556333,153.27,153.23,0.04470242]
[1749463484119,9.01556333,153.27,153.23,2.49383323]
[1749463484322,9.01556333,153.27,153.24,2.99424743]
[1749463484515,9.01556333,153.27,153.23,2.49383323]
[1749463484711,0.04503252,153.27,153.24,2.44913081]
[1749463485018,0.04503252,153.27,153.25,5.44354393]
[1749463485219,0.04503252,153.27,153.25,2.44913081]
[1749463485819,0.04503252,153.27,153.24,2.44913081]
[1749463486116,0.04503252,153.27,153.25,2.99498015]
[1749463486316,0.04503252,153.27,153.24,2.44913081]
[1749463487121,0.04503252,153.27,153.25,2.99510782]
[1749463487325,0.04503252,153.27,153.25,2.44913081]
[1749463488416,0.04503252,153.27,153.24,2.44913081]
[1749463488619,0.04503252,153.27,153.25,2.99490642]
[1749463488819,0.04503252,153.27,153.26,5.44377354]
[1749463489123,0.04503252,153.27,153.26,5.44335886]
[1749463489327,0.04503252,153.27,153.26,2.44913081]
[1749463489514,0.04503252,153.27,153.26,5.44300377]
[1749463489716,0.04503252,153.27,153.26,2.44913081]
[1749463489920,0.04503252,153.27,153.26,5.44289489]
[1749463490330,0.04503252,153.27,153.26,2.44913081]
[1749463490626,0.04503252,153.27,153.26,5.44293636]
[1749463490822,0.04503252,153.27,153.24,13.0292]
[1749463491025,0.04503252,153.27,153.24,2.44913081]
[1749463491424,0.04503252,153.27,153.23,41.06760242]
[1749463491425,0.04503252,153.27,153.23,43.51673323]
[1749463491616,0.04503252,153.27,153.24,5.44416061]
[1749463491820,0.04503252,153.27,153.24,2.44913081]
[1749463493028,6.56633252,153.27,153.24,2.44913081]
[1749463494226,9.01546333,153.27,153.24,2.44913081]
[1749463494433,9.01546333,153.27,153.23,36.99383323]
[1749463494928,6.5218,153.26,153.24,2.99512812]
[1749463495129,2.49416333,153.27,153.23,36.99383323]
[1749463495334,2.49416333,153.27,153.24,2.995052]
[1749463495630,9.01566333,153.27,153.23,36.99383323]
[1749463495932,9.01566333,153.27,153.24,2.99489455]
[1749463496232,9.01566333,153.27,153.23,36.99383323]
[1749463496431,9.01566333,153.27,153.24,2.99489588]
[1749463496635,9.01566333,153.27,153.23,36.99383323]
[1749463496830,9.01566333,153.27,153.24,2.99489499]
[1749463497032,9.01566333,153.27,153.23,36.99383323]
[1749463497232,2.49416333,153.27,153.24,2.99501863]
[1749463497530,6.56633252,153.27,153.24,2.44913081]
[1749463499635,6.56633252,153.27,153.23,34.54470242]
[1749463499837,6.56633252,153.27,153.24,5.44714698]
[1749463500031,6.56633252,153.27,153.23,34.54470242]
[1749463500237,6.5217,153.26,153.23,34.54470242]
[1749463500443,2.49416333,153.27,153.24,2.99810316]
[1749463500738,9.01566333,153.27,153.23,36.99383323]
[1749463501138,2.49416333,153.27,153.23,36.99383323]
[1749463501540,0.04503252,153.27,153.24,5.44711638]
[1749463501739,0.04503252,153.27,153.24,2.44913081]
[1749463502438,0.04503252,153.27,153.25,2.99735261]
[1749463502641,0.04503252,153.27,153.25,2.44913081]
[1749463502831,0.04503252,153.27,153.26,2.44913081]
[1749463503036,0.04503252,153.27,153.24,2.44913081]
[1749463503944,0.04503252,153.27,153.25,2.99657515]
[1749463504141,0.04503252,153.27,153.24,2.44913081]
[1749463504531,0.04503252,153.27,153.25,2.44913081]
[1749463504735,0.04503252,153.27,153.26,5.44347522]
[1749463504935,0.04503252,153.27,153.26,5.44301199]
[1749463505540,0.04503252,153.27,153.26,5.44875565]
[1749463505741,0.04503252,153.27,153.26,5.44854915]
[1749463505936,0.04503252,153.27,153.26,2.44913081]
[1749463506141,0.04503252,153.27,153.26,5.44325443]
[1749463506437,40.55364322,153.32,153.27,6.521]
[1749463506438,6.5193,153.32,153.27,6.521]
[1749463506647,6.05364322,153.33,153.27,34.4]
[1749463506841,42.90277403,153.34,153.3,2.44913081]
[1749463507041,8.50277403,153.34,153.3,2.44913081]
[1749463507539,8.54883305,153.34,153.3,2.49881135]
[1749463508043,15.06733305,153.34,153.3,2.49881135]
[1749463508244,6.09970224,153.34,153.3,2.49881135]
[1749463508641,12.61840224,153.34,153.3,2.49881135]
[1749463509347,0.04605902,153.34,153.32,2.44913081]
[1749463509742,0.04605902,153.34,153.3,0.04968054]
[1749463509947,0.04605902,153.34,153.31,2.44913081]
[1749463510740,0.04605902,153.34,153.31,8.96873081]
[1749463511138,0.04605902,153.34,153.31,2.44913081]
[1749463511338,0.04605902,153.34,153.32,3.82654331]
[1749463511646,0.04605902,153.34,153.33,2.98182194]
[1749463511945,0.04605902,153.34,153.33,2.98181497]
[1749463512136,0.04605902,153.34,153.31,34.4]
[1749463512340,0.04605902,153.34,153.32,6.5191]
[1749463512547,0.04605902,153.34,153.32,3.82654331]
[1749463512738,6.05364322,153.4,153.33,2.98149247]
[1749463512942,8.25794322,153.41,153.34,6.80779549]
[1749463513142,40.45364322,153.42,153.35,2.98027152]
[1749463513342,40.45364322,153.42,153.36,2.98016258]
[1749463513538,34.4,153.42,153.35,34.4]
[1749463513739,0.0430584,153.4,153.37,0.04981786]
[1749463514648,6.5162,153.39,153.37,0.04981786]
[1749463515148,0.0430584,153.4,153.37,0.04981786]
[1749463515149,6.5590584,153.4,153.37,0.04981786]
[1749463515543,4.13457912,153.39,153.37,0.04981786]
[1749463515749,4.13458097,153.38,153.37,0.04981786]
[1749463515940,4.14596863,153.38,153.37,0.04981786]
[1749463516145,4.14596864,153.38,153.37,0.04981786]
[1749463516346,4.14596852,153.38,153.37,0.04981786]
[1749463516748,4.14598494,153.38,153.37,0.04981786]
[1749463516941,6.5588584,153.4,153.37,0.04981786]
[1749463517146,4.14598678,153.39,153.37,0.04981786]
[1749463517451,0.0430584,153.4,153.37,0.04981786]
[1749463517743,6.5591584,153.4,153.37,0.04981786]
[1749463518144,4.14969161,153.39,153.37,0.04981786]
[1749463518356,6.5591584,153.4,153.37,0.04981786]
[1749463518750,6.5162,153.39,153.37,0.04981786]
[1749463518948,4.14969374,153.38,153.37,0.04981786]
[1749463519150,6.5162,153.39,153.37,0.04981786]
[1749463519647,4.14969374,153.38,153.37,0.04981786]
[1749463519847,4.14969056,153.38,153.37,0.04981786]
[1749463520152,4.14964954,153.38,153.37,0.04981786]
[1749463520450,4.1766483,153.38,153.37,0.04981786]
[1749463520853,6.5589584,153.4,153.37,0.04981786]
[1749463521044,4.17664613,153.39,153.37,0.04981786]
[1749463521245,4.17664613,153.38,153.37,0.04981786]
[1749463521550,6.5589584,153.4,153.37,0.04981786]
[1749463521853,4.18616538,153.39,153.37,0.04981786]
[1749463522045,6.5589584,153.4,153.37,0.04981786]